bitfinex-derivatives/quotes_SOLF0:USTF0_20250803
["timestamp","ask_amount","ask_price","bid_price","bid_amount"]
[1754191876208,113.26,160.44,160.43,9.5546]
[1754191876404,113.26,160.44,160.43,6.2346]
[1754191876609,113.26,160.44,160.43,9.5546]
[1754191876801,113.26,160.44,160.43,3.32]
[1754191881513,113.26,160.44,160.43,9.5546]
[1754191882211,3.13,160.48,160.45,6.2335]
[1754191882408,3.41672616,160.49,160.46,3.32]
[1754191882409,113.26,160.47,160.46,3.32]
[1754191886115,113.26,160.47,160.46,9.5534]
[1754191886515,113.26,160.49,160.48,3.32]
[1754191891016,113.26,160.49,160.48,9.5526]
[1754191891911,113.24,160.51,160.49,3.23]
[1754191892117,113.24,160.51,160.5,3.23]
[1754191894626,113.24,160.51,160.5,9.4618]
[1754191894926,116.35,160.53,160.51,3.23]
[1754191895117,116.35,160.53,160.52,3.23]
[1754191905129,113.22,160.53,160.47,6.2329]
[1754191905432,3.13,160.51,160.49,6.64672616]
[1754191905731,116.33,160.5,160.49,6.64672616]
[1754191905932,113.2,160.5,160.49,6.64672616]
[1754191906732,113.2,160.5,160.49,12.87892616]
[1754191908033,113.2,160.5,160.49,6.64672616]
[1754191908435,116.36,160.5,160.49,6.64672616]
[1754191912932,116.36,160.5,160.47,6.64672616]
[1754191913137,3.16,160.49,160.47,6.64672616]
[1754191914535,3.16,160.49,160.47,3.23]
[1754191917630,3.16,160.49,160.46,3.41672616]
[1754191917631,3.16,160.49,160.46,3.23]
[1754191918431,6.2323,160.49,160.46,3.23]
[1754191918631,3.16,160.48,160.46,3.23]
[1754191918835,113.2,160.47,160.46,3.23]
[1754191919139,116.36,160.47,160.46,3.23]
[1754191921230,113.2,160.47,160.46,3.23]
[1754191921930,113.2,160.47,160.46,9.4634]
[1754191923140,113.2,160.47,160.46,12.88012616]
[1754191923638,113.2,160.49,160.48,3.47]
[1754191928043,3.15,160.48,160.47,3.47]
[1754191928235,3.15,160.48,160.45,3.41672616]
[1754191928435,3.15,160.48,160.46,3.47]
[1754191929744,3.15,160.48,160.47,3.47]
[1754191931248,3.15,160.48,160.46,3.47]
[1754191931744,3.15,160.48,160.44,3.41672616]
[1754191931745,3.15,160.47,160.44,3.41672616]
[1754191931945,116.35,160.46,160.45,3.47]
[1754191932941,113.2,160.46,160.45,3.47]
[1754191942354,113.2,160.46,160.44,6.88672616]
[1754191942652,3.15,160.45,160.44,6.88672616]
[1754191944858,116.35,160.46,160.45,3.47]
[1754191946857,113.2,160.46,160.45,3.47]
[1754191948157,116.35,160.46,160.45,3.47]
[1754191948960,113.2,160.46,160.45,3.47]
[1754191949553,116.35,160.46,160.45,3.47]
[1754191962273,113.2,160.46,160.45,13.12052616]
[1754191973484,116.36,160.46,160.45,13.12052616]
[1754191975682,113.2,160.46,160.45,13.12052616]
[1754191977686,116.36,160.46,160.45,13.12052616]
[1754191978975,116.36,160.46,160.45,9.7038]
[1754191979179,116.36,160.46,160.45,13.12052616]
[1754191983790,116.36,160.46,160.45,9.7038]
[1754191983984,116.36,160.46,160.45,13.12052616]
[1754191984586,116.36,160.46,160.45,9.65052616]
[1754191984987,116.36,160.46,160.45,13.08052616]
[1754191985593,113.2,160.46,160.45,13.08052616]
[1754191992304,3.41672616,160.5,160.45,13.08052616]
[1754191992305,113.16,160.49,160.46,3.43]
[1754191992495,113.16,160.49,160.48,3.43]
[1754191992700,116.3,160.49,160.48,3.43]
[1754191993105,113.16,160.49,160.48,3.43]
[1754191993598,113.16,160.49,160.48,9.6626]
[1754191994800,116.3,160.49,160.48,3.43]
[1754191997104,3.14,160.48,160.46,6.84672616]
[1754191997306,3.14,160.48,160.44,8.68203578]
[1754191997503,3.14,160.47,160.44,3.43]
[1754191997706,3.14,160.45,160.44,3.43]
[1754192000112,3.14,160.45,160.44,9.6642]
[1754192000505,113.14,160.46,160.44,9.6642]
[1754192000810,116.28,160.46,160.45,3.43]
[1754192008515,113.14,160.46,160.45,3.43]
[1754192009117,113.14,160.46,160.45,9.6638]
[1754192009420,126.98356152,160.51,160.46,3.43]
[1754192009621,113.14,160.5,160.49,3.41672616]
[1754192009918,113.14,160.5,160.49,13.07892616]
[1754192012319,425.43672616,160.55,160.52,6.2307]
[1754192012514,113.14,160.54,160.53,3.33]
[1754192013118,116.28,160.54,160.53,3.33]
[1754192019835,113.14,160.54,160.53,9.5607]
[1754192021624,116.28,160.54,160.53,9.5607]
[1754192023728,116.28,160.54,160.53,3.33]
[1754192025315,116.28,160.54,160.52,9.64772616]
[1754192025316,113.14,160.54,160.52,9.64772616]
[1754192025521,116.28,160.54,160.53,3.33]
[1754192027127,113.14,160.54,160.53,9.5607]
[1754192027324,113.12,160.56,160.53,3.33]
[1754192027523,116.26,160.56,160.55,3.33]
[1754192031223,3.14,160.55,160.54,3.41672616]
[1754192031422,3.14,160.55,160.53,3.33]
[1754192032228,3.14,160.55,160.54,3.33]
[1754192041334,116.26,160.56,160.54,3.33]
[1754192042229,3.15,160.55,160.54,3.33]
[1754192043831,3.15,160.53,160.5,3.47]
[1754192044030,116.23,160.52,160.5,3.41672616]
[1754192044232,113.08,160.52,160.51,3.47]
[1754192051638,9.64632616,160.56,160.51,3.47]
[1754192051946,113.12,160.57,160.55,3.47]
[1754192052241,113.12,160.57,160.56,6.88672616]
[1754192052948,116.27,160.57,160.56,3.47]
[1754192053129,116.27,160.57,160.56,6.88672616]
[1754192054542,6.2285,160.59,160.56,6.88672616]
[1754192054543,113.18,160.59,160.57,3.47]
[1754192054734,113.18,160.59,160.58,3.41672616]
[1754192054935,113.18,160.59,160.58,6.88672616]
[1754192055142,422.27672616,160.64,160.59,3.47]
[1754192055336,3.15,160.62,160.61,3.47]
[1754192056146,113.2,160.63,160.61,3.47]
[1754192056732,113.2,160.63,160.61,6.2273]
[1754192056936,113.2,160.63,160.62,3.47]
[1754192057137,113.2,160.63,160.62,6.88672616]
[1754192058237,116.35,160.63,160.62,6.88672616]
[1754192058835,116.35,160.63,160.62,3.47]
[1754192062146,3.15,160.62,160.61,3.47]
[1754192062849,9.3772,160.62,160.61,3.47]
[1754192063250,113.2,160.63,160.6,3.47]
[1754192063251,3.15,160.61,160.6,3.47]
[1754192063550,116.37,160.61,160.6,3.47]
[1754192065743,3.15,160.6,160.55,5.33073238]
[1754192065944,3.15,160.58,160.57,3.47]
[1754192066148,116.43,160.58,160.57,3.47]
[1754192069747,3.15,160.57,160.55,3.47]
[1754192070052,116.41,160.56,160.55,3.47]
[1754192070649,113.26,160.56,160.54,3.47]
[1754192070852,3.15,160.55,160.54,3.47]
[1754192072154,116.4,160.56,160.54,3.47]
[1754192072451,3.14,160.55,160.49,5.33073238]
[1754192072854,3.14,160.55,160.5,3.48]
[1754192073452,3.14,160.54,160.5,3.48]
[1754192073653,3.14,160.55,160.5,3.48]
[1754192074948,3.14,160.54,160.52,6.2308]
[1754192075259,3.14,160.54,160.53,3.48]
[1754192077056,3.14,160.54,160.52,6.2308]
[1754192077357,3.14,160.55,160.47,5.33073238]
[1754192077752,3.14,160.55,160.51,3.48]
[1754192077959,5.33073238,160.54,160.45,10.58261614]
[1754192078258,5.33073238,160.54,160.46,3.48]
[1754192078259,3.14,160.53,160.46,3.48]
[1754192078551,3.14,160.5,160.48,6.2323]
[1754192079151,3.14,160.5,160.49,3.48]
[1754192088951,3.14,160.51,160.49,3.48]
[1754192089351,3.14,160.52,160.49,3.48]
[1754192089558,113.26,160.51,160.49,3.48]
[1754192090158,113.26,160.51,160.49,9.7122]
[1754192090461,113.26,160.51,160.5,3.48]
[1754192090764,3.14,160.52,160.5,3.48]
[1754192090959,113.26,160.51,160.5,3.48]
[1754192091965,113.26,160.51,160.5,9.7118]
[1754192093155,113.24,160.52,160.51,3.48]
[1754192093767,116.38,160.52,160.51,3.48]
[1754192096370,3.14,160.51,160.44,3.48]
[1754192098172,9.3715,160.51,160.46,6.2331]
[1754192098364,3.14,160.5,160.47,3.48]
[1754192100268,9.372,160.5,160.47,3.48]
[1754192100568,113.24,160.52,160.46,3.48]
[1754192100569,3.14,160.49,160.46,3.48]
[1754192100870,113.24,160.48,160.46,3.48]
[1754192101166,116.38,160.48,160.46,3.48]
[1754192101567,116.38,160.48,160.44,6.2338]
[1754192101768,3.15,160.47,160.44,6.2338]
[1754192102371,3.15,160.47,160.45,3.37]
[1754192102666,113.26,160.47,160.45,3.37]
[1754192102870,116.41,160.47,160.45,3.37]
[1754192105068,113.26,160.47,160.45,3.37]
[1754192106072,113.46,160.5,160.47,6.2326]
[1754192106276,113.46,160.5,160.48,3.37]
[1754192108079,116.61,160.5,160.48,3.37]
[1754192110679,116.61,160.5,160.49,3.37]
[1754192112484,113.46,160.5,160.49,3.37]
[1754192112784,3.15,160.49,160.45,3.37]
[1754192113174,3.15,160.48,160.45,3.37]
[1754192113373,3.15,160.48,160.46,6.233]
[1754192113686,3.15,160.48,160.47,3.37]
[1754192114278,3.15,160.48,160.46,6.233]
[1754192114484,113.46,160.5,160.46,6.233]
[1754192114485,3.15,160.49,160.47,3.37]
[1754192116488,3.15,160.49,160.48,3.37]
[1754192116892,6.2324,160.49,160.47,3.37]
[1754192117081,3.15,160.48,160.43,5.25188376]
[1754192117393,116.59,160.47,160.46,3.37]
[1754192120389,6.2324,160.49,160.46,3.37]
[1754192120694,113.42,160.49,160.47,3.37]
[1754192122998,113.42,160.49,160.47,9.603]
[1754192123298,113.44,160.5,160.48,3.37]
[1754192124093,113.44,160.5,160.49,9.6021]
[1754192133010,116.57,160.5,160.49,9.6021]
[1754192133798,3.13,160.49,160.46,3.45]
[1754192134004,3.13,160.49,160.47,3.45]
[1754192136503,3.13,160.49,160.48,3.45]
[1754192136804,3.13,160.49,160.47,3.45]
[1754192136999,3.13,160.49,160.46,3.45]
[1754192137201,3.13,160.48,160.46,3.45]
[1754192138706,3.13,160.47,160.44,3.45]
[1754192138906,116.53,160.46,160.44,3.45]
[1754192143102,3.13,160.45,160.44,3.45]
[1754192146100,116.53,160.46,160.44,3.45]
[1754192148208,116.53,160.46,160.43,6.2345]
[1754192148209,3.13,160.45,160.42,6.2349]
[1754192148418,3.13,160.45,160.44,3.45]
[1754192149416,116.53,160.46,160.44,3.45]
[1754192149612,113.4,160.46,160.44,3.45]
[1754192150013,113.42,160.45,160.44,3.45]
[1754192150916,3.13,160.46,160.44,3.45]
[1754192151214,113.42,160.45,160.44,3.45]
[1754192153527,113.4,160.45,160.44,3.45]
[1754192154018,116.53,160.45,160.44,3.45]
[1754192154819,3.13,160.45,160.44,3.45]
[1754192155028,116.51,160.45,160.44,3.45]
[1754192156628,113.38,160.45,160.44,3.45]
[1754192158528,6.54965077,160.46,160.44,3.45]
[1754192158731,113.36,160.45,160.44,3.45]
[1754192159041,116.49,160.45,160.44,3.45]
[1754192160229,113.36,160.45,160.44,3.45]
[1754192164031,6.57965077,160.48,160.43,3.23]
[1754192164231,113.32,160.47,160.43,3.23]
[1754192164432,116.48,160.47,160.43,3.23]
[1754192164628,116.48,160.47,160.44,6.2342]
[1754192164831,116.48,160.47,160.45,3.23]
[1754192165032,3.16,160.46,160.45,3.23]
[1754192165836,113.32,160.47,160.45,3.23]
[1754192166034,116.48,160.47,160.45,3.23]
[1754192166736,113.32,160.47,160.45,3.23]
[1754192167033,116.48,160.47,160.45,3.23]
[1754192167430,3.16,160.46,160.45,3.23]
[1754192169037,116.48,160.47,160.45,3.23]
[1754192170133,113.32,160.47,160.45,9.4635]
[1754192170436,113.32,160.47,160.45,3.23]
[1754192170635,113.3,160.47,160.46,3.23]
[1754192172332,113.3,160.47,160.46,6.2334]
[1754192172539,113.3,160.47,160.46,9.4634]
[1754192173940,113.3,160.47,160.46,3.23]
[1754192177345,3.16,160.46,160.43,3.23]
[1754192177739,3.16,160.45,160.43,3.23]
[1754192178038,116.56,160.44,160.43,3.23]
[1754192185150,113.4,160.44,160.43,3.23]
[1754192185543,113.4,160.44,160.43,12.88425077]
[1754192186052,113.4,160.44,160.43,9.65425077]
[1754192186252,113.4,160.44,160.43,12.88425077]
[1754192187849,3.16,160.45,160.43,6.2346]
[1754192188152,113.32,160.44,160.43,6.2346]
[1754192188553,113.32,160.44,160.43,9.4646]
[1754192188756,116.48,160.44,160.43,3.23]
[1754192189347,3.16,160.44,160.43,3.23]
[1754192189552,116.52,160.44,160.43,3.23]
[1754192190951,3.16,160.44,160.43,3.23]
[1754192191252,116.52,160.44,160.43,3.23]
[1754192193558,3.16,160.44,160.43,3.23]
[1754192193751,116.48,160.44,160.43,3.23]
[1754192194656,3.15,160.43,160.42,3.32]
[1754192196354,3.15,160.43,160.4,3.41965077]
[1754192196558,3.15,160.43,160.41,3.32]
[1754192197358,3.15,160.42,160.41,3.32]
[1754192202158,3.15,160.43,160.41,3.32]
[1754192216066,6.2347,160.43,160.4,3.41965077]
[1754192216267,3.15,160.42,160.4,3.32]
[1754192216569,116.41,160.41,160.4,3.32]
[1754192220173,113.26,160.41,160.4,3.32]
[1754192221476,113.26,160.41,160.4,6.73965077]
[1754192222075,113.26,160.41,160.4,9.5557]
[1754192222466,3.15,160.42,160.41,3.37]
[1754192222662,116.41,160.42,160.41,3.37]
[1754192223477,3.15,160.42,160.41,3.37]
[1754192223778,116.41,160.42,160.41,3.37]
[1754192224277,113.26,160.42,160.41,3.37]
[1754192224671,116.4,160.42,160.41,3.37]
[1754192225672,3.41965077,160.44,160.42,3.37]
[1754192225673,3.14,160.44,160.42,3.37]
[1754192225882,113.26,160.44,160.42,3.37]
[1754192227178,113.26,160.46,160.44,3.37]
[1754192227579,116.4,160.46,160.44,3.37]
[1754192228379,113.26,160.46,160.44,3.37]
[1754192228584,113.26,160.46,160.45,3.41965077]
[1754192228872,3.14,160.48,160.46,6.2334]
[1754192229075,113.26,160.47,160.46,9.6034]
[1754192230080,113.26,160.47,160.46,13.02305077]
[1754192234193,113.26,160.47,160.46,9.6034]
[1754192234387,113.26,160.47,160.46,13.02305077]
[1754192235591,3.14,160.48,160.47,3.37]
[1754192236990,113.3,160.49,160.45,6.78965077]
[1754192237189,3.14,160.48,160.45,3.37]
[1754192238293,3.14,160.48,160.45,9.6037]
[1754192241090,3.14,160.48,160.46,3.37]
[1754192242690,116.42,160.47,160.46,3.37]
[1754192244396,113.28,160.47,160.46,9.6034]
[1754192245096,113.28,160.47,160.46,13.02305077]
[1754192245297,113.3,160.49,160.47,6.2327]
[1754192245498,113.3,160.49,160.48,3.37]
[1754192246198,113.3,160.49,160.48,6.78965077]
[1754192247396,113.3,160.49,160.48,13.02225077]
[1754192249793,3.14,160.52,160.5,6.2315]
[1754192249998,3.14,160.52,160.51,3.37]
[1754192250299,116.4,160.52,160.51,3.37]
[1754192252601,113.26,160.52,160.51,9.6014]
[1754192252991,116.4,160.52,160.51,9.6014]
[1754192256544,113.26,160.52,160.51,9.6014]
[1754192259608,3.14,160.57,160.54,3.51]
[1754192259808,113.22,160.56,160.54,3.51]
[1754192260011,3.14,160.55,160.54,3.51]
[1754192260212,116.36,160.56,160.54,9.74]
[1754192260510,3.14,160.55,160.54,6.23]
[1754192261012,3.14,160.55,160.54,9.74]
[1754192262208,113.22,160.56,160.55,9.7399]
[1754192262414,113.22,160.56,160.55,13.15955077]
[1754192266913,116.37,160.56,160.55,13.15955077]
[1754192267818,113.22,160.56,160.55,13.15955077]
[1754192268821,116.37,160.56,160.55,13.15955077]
[1754192269328,113.22,160.56,160.55,13.15955077]
[1754192269723,3.15,160.57,160.56,3.51]
[1754192271729,116.33,160.57,160.56,3.51]
[1754192271929,116.33,160.57,160.56,9.7395]
[1754192272532,113.18,160.57,160.56,9.7395]
[1754192273025,116.33,160.59,160.58,3.51]
[1754192273625,113.18,160.59,160.58,3.51]
[1754192274227,113.18,160.59,160.58,9.7387]
[1754192274737,116.33,160.59,160.58,9.7387]
[1754192276234,116.33,160.59,160.58,3.51]
[1754192277938,3.15,160.58,160.56,13.15905077]
[1754192278430,3.15,160.58,160.56,9.64905077]
[1754192278637,3.15,160.58,160.57,3.51]
[1754192278835,3.15,160.58,160.57,9.7391]
[1754192280338,3.15,160.58,160.57,3.51]
[1754192281237,3.15,160.58,160.57,9.7391]
[1754192283737,113.18,160.59,160.57,9.7391]
[1754192283941,113.18,160.59,160.58,9.6087]
[1754192283942,116.33,160.59,160.58,9.6087]
[1754192284138,116.33,160.59,160.58,6.2287]
[1754192284337,116.33,160.59,160.58,9.6087]
[1754192285441,116.33,160.59,160.58,3.38]
[1754192286134,3.15,160.58,160.57,3.41965077]
[1754192286639,3.15,160.58,160.57,6.79965077]
[1754192289343,3.15,160.58,160.56,6.79965077]
[1754192290641,9.379,160.58,160.56,3.38]
[1754192290846,3.15,160.57,160.54,3.38]
[1754192291036,3.15,160.55,160.54,3.38]
[1754192293047,113.14,160.56,160.54,9.6103]
[1754192293235,113.14,160.56,160.55,3.38]
[1754192294348,113.14,160.56,160.55,13.02955077]
[1754192295742,113.14,160.58,160.57,3.38]
[1754192296946,116.29,160.58,160.57,3.38]
[1754192299043,3.15,160.57,160.54,9.64985077]
[1754192299744,3.15,160.57,160.55,3.38]
[1754192300638,116.29,160.58,160.56,3.38]
[1754192301948,113.14,160.58,160.56,13.02885077]
[1754192302141,113.14,160.58,160.57,3.38]
[1754192308150,3.15,160.6,160.57,3.38]
[1754192308350,3.15,160.59,160.57,3.38]
[1754192309053,3.15,160.59,160.57,9.609]
[1754192309250,3.15,160.59,160.58,3.38]
[1754192309447,113.14,160.6,160.58,13.02835077]
[1754192310251,113.14,160.6,160.59,6.2283]
[1754192310459,113.14,160.6,160.59,9.6083]
[1754192314853,116.27,160.6,160.59,3.38]
[1754192319259,116.27,160.6,160.58,9.64825077]
[1754192319464,3.13,160.59,160.58,13.17825077]
[1754192320764,116.27,160.6,160.59,3.53]
[1754192326566,116.27,160.6,160.59,9.7583]
[1754192326764,113.14,160.6,160.59,9.7583]
[1754192329267,113.14,160.6,160.59,3.53]
[1754192330771,116.27,160.6,160.59,3.53]
[1754192333769,116.27,160.6,160.58,3.41965077]
[1754192333970,113.14,160.6,160.59,3.53]
[1754192334472,116.29,160.6,160.59,3.53]
[1754192342875,3.15,160.59,160.57,3.26]
[1754192343174,116.25,160.58,160.57,3.26]
[1754192345083,113.1,160.58,160.57,3.26]
[1754192349986,116.25,160.58,160.57,3.26]
[1754192352187,113.1,160.58,160.57,3.26]
[1754192356783,116.25,160.58,160.57,3.26]
[1754192356991,113.1,160.58,160.57,3.26]
[1754192358090,113.1,160.58,160.57,9.4891]
[1754192361089,113.08,160.6,160.58,9.4887]
[1754192361392,116.23,160.6,160.59,3.26]
[1754192362683,113.08,160.6,160.59,3.26]
[1754192362987,116.23,160.6,160.59,3.26]
[1754192364994,113.08,160.6,160.59,3.26]
[1754192366089,113.08,160.6,160.59,9.4884]
[1754192366887,3.15,160.63,160.59,9.4884]
[1754192367180,116.23,160.62,160.6,6.67965077]
[1754192367386,113.08,160.62,160.61,3.26]
[1754192368089,116.23,160.62,160.61,3.26]
[1754192370898,113.08,160.62,160.61,9.4876]
[1754192372688,113.08,160.62,160.61,3.26]
[1754192374092,116.22,160.62,160.61,3.26]
[1754192376496,3.14,160.67,160.61,3.23]
[1754192376797,116.2,160.67,160.66,6.64965077]
[1754192380396,116.2,160.67,160.66,12.87525077]
[1754192380703,113.06,160.67,160.66,12.87525077]
[1754192384691,116.16,160.69,160.68,3.23]
[1754192384896,116.16,160.69,160.68,6.64965077]
[1754192385500,113.02,160.69,160.68,6.64965077]
[1754192386298,113.02,160.69,160.68,12.87455077]
[1754192390003,116.16,160.69,160.68,12.87455077]
[1754192390601,3.14,160.74,160.69,6.2242]
[1754192390899,3.14,160.72,160.71,3.23]
[1754192397006,3.14,160.72,160.7,3.41965077]
[1754192397408,3.14,160.72,160.7,6.64965077]
[1754192397606,3.14,160.71,160.68,3.41965077]
[1754192397809,3.14,160.69,160.68,6.64965077]
[1754192398406,3.14,160.69,160.68,12.87425077]
[1754192398600,3.14,160.71,160.68,3.41965077]
[1754192398803,112.98,160.72,160.71,3.23]
[1754192399403,112.98,160.72,160.71,9.4533]
[1754192400505,116.12,160.75,160.71,3.23]
[1754192400710,116.12,160.75,160.74,3.23]
[1754192402113,116.12,160.75,160.73,9.64245077]
[1754192402315,421.87965077,160.78,160.73,3.41965077]
[1754192402516,421.87965077,160.78,160.64,5.22004843]
[1754192402517,112.96,160.77,160.76,3.48]
[1754192403008,116.1,160.77,160.76,3.48]
[1754192406016,128.98912045,160.79,160.76,3.48]
[1754192406214,245.06912045,160.79,160.78,3.48]
[1754192407010,418.2,160.87,160.78,3.48]
[1754192407213,3.14,160.85,160.78,3.48]
[1754192407514,3.14,160.85,160.77,5.32009162]
[1754192407515,3.14,160.83,160.8,3.48]
[1754192408105,3.14,160.83,160.81,3.48]
[1754192408815,6.2184,160.85,160.73,91.79465726]
[1754192408816,3.14,160.85,160.79,5.32009162]
[1754192409015,3.14,160.83,160.8,3.48]
[1754192409312,3.14,160.83,160.81,6.2194]
[1754192409516,3.14,160.83,160.82,3.48]
[1754192410112,112.96,160.84,160.82,3.48]
[1754192410313,3.14,160.83,160.82,3.48]
[1754192412223,3.14,160.83,160.81,3.48]
[1754192413220,3.14,160.83,160.79,3.48]
[1754192413522,3.14,160.83,160.78,3.48]
[1754192413721,3.14,160.83,160.8,3.48]
[1754192414918,3.14,160.83,160.79,3.48]
[1754192416321,3.14,160.83,160.8,3.48]
[1754192417323,3.14,160.83,160.79,6.2205]
[1754192417324,3.14,160.83,160.81,3.48]
[1754192418419,112.96,160.84,160.82,3.48]
[1754192419122,112.96,160.84,160.82,9.6994]
[1754192419324,116.1,160.84,160.82,6.2194]
[1754192419523,116.1,160.84,160.83,3.48]
[1754192423827,112.96,160.84,160.83,9.6991]
[1754192424331,112.96,160.84,160.83,3.48]
[1754192424533,112.9282719,160.84,160.83,3.48]
[1754192425033,112.9282719,160.84,160.83,9.6991]
[1754192425429,421.34,160.87,160.84,6.2185]
[1754192425632,112.92,160.86,160.85,3.48]
[1754192426134,112.92,160.86,160.85,9.6983]
[1754192426322,112.92,160.86,160.85,3.48]
[1754192427831,112.92,160.86,160.85,9.6983]
[1754192431534,116.06,160.86,160.85,9.6983]
[1754192432624,116.06,160.86,160.85,3.48]
[1754192432938,3.14,160.85,160.83,3.42]
[1754192433533,3.14,160.84,160.82,6.2191]
[1754192433734,112.96,160.83,160.82,6.2191]
[1754192433935,112.96,160.83,160.82,9.6391]
[1754192437632,116.1,160.83,160.82,3.42]
[1754192440833,116.1,160.83,160.82,9.6394]
[1754192443232,116.1,160.83,160.82,3.42]
[1754192444027,3.14,160.82,160.79,5.32009162]
[1754192444335,3.14,160.82,160.73,110.92231228]
[1754192444336,3.14,160.8,160.76,3.42]
[1754192444531,3.14,160.78,160.76,3.42]
[1754192445333,112.92,160.79,160.77,3.42]
[1754192445534,116.06,160.79,160.77,3.42]
[1754192445840,116.06,160.79,160.77,9.6411]
[1754192446044,116.06,160.79,160.78,3.42]
[1754192447445,116.16,160.79,160.78,3.42]
[1754192448638,3.14,160.79,160.78,3.42]
[1754192448836,116.16,160.79,160.78,3.42]
[1754192449242,116.14,160.79,160.78,3.42]
[1754192449632,3.14,160.79,160.78,3.42]
[1754192449832,116.16,160.79,160.78,3.42]
[1754192451245,3.14,160.79,160.78,3.42]
[1754192451543,116.14,160.79,160.78,3.42]
[1754192460664,122.3606,160.79,160.77,3.42]
[1754192460865,3.14,160.78,160.77,3.42]
[1754192461666,3.15,160.76,160.75,3.23]
[1754192461970,3.15,160.75,160.74,3.23]
[1754192462269,3.15,160.75,160.69,5.32009162]
[1754192462270,3.15,160.75,160.72,3.23]
[1754192462470,112.98,160.74,160.72,3.23]
[1754192462866,112.98,160.74,160.68,3.23]
[1754192463066,3.15,160.73,160.68,3.23]
[1754192463263,116.15,160.72,160.68,3.23]
[1754192463463,113.0,160.71,160.68,9.4548]
[1754192463769,113.0,160.71,160.69,3.23]
[1754192465868,113.0,160.71,160.69,9.4545]
[1754192466069,113.0,160.71,160.7,3.23]
[1754192471174,113.0,160.71,160.63,5.32009162]
[1754192471175,116.15,160.71,160.63,5.32009162]
[1754192471381,3.15,160.7,160.69,3.23]
[1754192471574,3.15,160.7,160.68,3.23]
[1754192472179,3.15,160.7,160.69,3.23]
[1754192475487,121.47009162,160.71,160.69,3.23]
[1754192476184,116.15,160.71,160.69,3.23]
[1754192479793,122.3737,160.71,160.69,3.23]
[1754192482394,3.14,160.7,160.69,3.23]
[1754192484999,9.3641,160.7,160.69,3.23]
[1754192485397,3.14,160.69,160.67,3.23]